bitfinex-derivatives/quotes_BTCF0:USTF0_20241203
["timestamp","ask_amount","ask_price","bid_price","bid_amount"]
[1733217488004,0.15948541,95361.0,95360.0,0.16566467]
[1733217488797,0.15948541,95361.0,95357.0,0.3608]
[1733217488999,0.15948541,95361.0,95358.0,0.13664]
[1733217489599,0.052416,95359.0,95357.0,0.49744]
[1733217489908,0.052416,95359.0,95349.0,0.3608]
[1733217489909,0.15703424,95358.0,95356.0,0.13664]
[1733217491103,0.21045124,95358.0,95356.0,0.13664]
[1733217491303,0.21145124,95358.0,95356.0,0.13664]
[1733217491707,0.3608,95357.0,95349.0,0.02911324]
[1733217491905,0.052419,95354.0,95348.0,0.13664]
[1733217492102,0.052421,95352.0,95348.0,0.13664]
[1733217492309,0.052421,95352.0,95346.0,0.08259535]
[1733217492512,0.15746811,95351.0,95346.0,0.02953235]
[1733217492703,0.3608,95347.0,95342.0,0.13664]
[1733217493107,0.3608,95347.0,95342.0,0.189066]
[1733217493108,0.15746811,95346.0,95342.0,0.189066]
[1733217493403,0.15746811,95346.0,95342.0,0.13664]
[1733217493604,0.20989211,95346.0,95342.0,0.13664]
[1733217494011,0.052425,95344.0,95342.0,0.13664]
[1733217494311,0.15796395,95343.0,95342.0,0.13664]
[1733217495114,0.21038895,95343.0,95337.0,0.08348938]
[1733217496005,0.052426,95342.0,95337.0,0.08348938]
[1733217496206,0.118626,95342.0,95337.0,0.05400131]
[1733217496405,0.15743913,95341.0,95337.0,0.05400131]
[1733217497204,0.052428,95339.0,95337.0,0.00157331]
[1733217497410,0.3608,95338.0,95337.0,0.00157331]
[1733217497623,0.46183933,95338.0,95337.0,0.00157331]
[1733217498815,0.46283933,95338.0,95337.0,0.00157331]
[1733217499719,0.10303933,95338.0,95337.0,0.00157331]
[1733217500216,0.10203933,95338.0,95337.0,0.00157331]
[1733217500405,0.10303933,95338.0,95337.0,0.00157331]
[1733217501111,0.0026,95348.0,95347.0,0.052423]
[1733217501304,0.428913,95366.0,95354.0,0.052419]
[1733217501305,0.0026,95357.0,95354.0,0.052419]
[1733217501507,0.00417372,95365.0,95354.0,0.052419]
[1733217501809,0.15738675,95356.0,95355.0,0.052419]
[1733217502015,0.15738675,95356.0,95350.0,0.13664]
[1733217502016,0.12183355,95364.0,95356.0,0.052418]
[1733217502321,0.00417372,95365.0,95351.0,0.0318]
[1733217502507,0.00417372,95365.0,95352.0,0.13664]
[1733217502508,0.15760732,95363.0,95352.0,0.13664]
[1733217502711,0.14896164,95362.0,95352.0,0.189061]
[1733217502913,0.052416,95360.0,95352.0,0.13664]
[1733217503112,0.15760732,95362.0,95353.0,0.13664]
[1733217503314,0.00417372,95365.0,95354.0,0.001]
[1733217503315,0.052418,95357.0,95354.0,0.001]
[1733217503515,0.09654987,95356.0,95354.0,0.001]
[1733217503716,0.34442437,95356.0,95354.0,0.001]
[1733217503914,0.55337992,95355.0,95354.0,0.001]
[1733217504112,0.44055995,95355.0,95353.0,0.13764]
[1733217504318,0.55340203,95354.0,95353.0,0.13764]
[1733217504709,0.71050468,95354.0,95353.0,0.13764]
[1733217504915,0.71050468,95354.0,95353.0,0.13664]
[1733217505123,0.36647249,95354.0,95353.0,0.13664]
[1733217506420,0.25465252,95354.0,95353.0,0.13664]
[1733217506611,0.25465252,95354.0,95353.0,0.13764]
[1733217506612,0.25565252,95354.0,95353.0,0.13764]
[1733217507715,0.47191703,95354.0,95353.0,0.13764]
[1733217508026,0.25565432,95354.0,95353.0,0.13764]
[1733217508211,0.25565432,95354.0,95353.0,0.19006]
[1733217509826,0.25565432,95354.0,95353.0,0.21986633]
[1733217510515,0.24565031,95354.0,95353.0,0.21986633]
[1733217511323,0.24565031,95354.0,95353.0,0.22046633]
[1733217511817,0.24565031,95354.0,95353.0,0.19066]
[1733217512621,0.24691426,95354.0,95353.0,0.19066]
[1733217513025,0.24691426,95354.0,95353.0,0.08300246]
[1733217513223,0.24691426,95354.0,95353.0,0.22024246]
[1733217514516,0.24691426,95354.0,95353.0,0.19066]
[1733217514825,0.24691426,95354.0,95353.0,0.13824]
[1733217515828,0.24691426,95354.0,95353.0,0.001]
[1733217516631,0.3466735,95354.0,95353.0,0.001]
[1733217516822,0.34667435,95354.0,95353.0,0.001]
[1733217517934,0.37570221,95354.0,95353.0,0.001]
[1733217518132,0.42812221,95354.0,95353.0,0.001]
[1733217518630,0.89070444,95354.0,95353.0,0.001]
[1733217518832,0.9070937,95354.0,95353.0,0.001]
[1733217522142,0.91358816,95354.0,95353.0,0.001]
[1733217523743,0.8845603,95354.0,95353.0,0.001]
[1733217524844,0.8845603,95354.0,95353.0,0.053421]
[1733217525442,0.76638881,95354.0,95353.0,0.053421]
[1733217526040,0.76638881,95354.0,95353.0,0.001]
[1733217526241,0.68055078,95354.0,95353.0,0.001]
[1733217526546,0.72298312,95354.0,95353.0,0.05342]
[1733217526954,0.36218312,95354.0,95353.0,0.05342]
[1733217527447,0.67518639,95354.0,95353.0,0.05342]
[1733217527754,0.36218312,95354.0,95353.0,0.05342]
[1733217529150,0.44081285,95354.0,95353.0,0.05342]
[1733217529346,0.36218312,95354.0,95353.0,0.05342]
[1733217530453,0.2541473,95354.0,95353.0,0.05342]
[1733217531250,0.15910265,95354.0,95353.0,0.05342]
[1733217532049,0.26819803,95354.0,95353.0,0.05342]
[1733217532257,0.36400428,95354.0,95353.0,0.05342]
[1733217532748,0.67701088,95354.0,95353.0,0.05342]
[1733217533550,0.36400428,95354.0,95353.0,0.05342]
[1733217535046,0.72480428,95354.0,95353.0,0.05342]
[1733217535651,1.03779306,95354.0,95353.0,0.05342]
[1733217537547,0.72480428,95354.0,95353.0,0.05342]
[1733217538358,1.03777897,95354.0,95353.0,0.05342]
[1733217538554,0.67697897,95354.0,95353.0,0.05342]
[1733217539146,0.36400428,95354.0,95353.0,0.05342]
[1733217540566,0.48942058,95354.0,95353.0,0.05342]
[1733217541060,0.48942058,95354.0,95353.0,0.001]
[1733217541263,0.90264058,95354.0,95353.0,0.001]
[1733217541757,0.85022058,95354.0,95353.0,0.001]
[1733217542152,0.90264058,95354.0,95353.0,0.001]
[1733217545659,0.93152943,95354.0,95353.0,0.001]
[1733217548759,1.27560723,95354.0,95353.0,0.001]
[1733217549365,0.93152943,95354.0,95353.0,0.001]
[1733217553469,0.80611313,95354.0,95353.0,0.001]
[1733217553670,0.80611313,95354.0,95353.0,0.053421]
[1733217555371,0.80611313,95354.0,95353.0,0.001]
[1733217555760,0.92967407,95354.0,95353.0,0.001]
[1733217556168,0.92967407,95354.0,95353.0,0.053421]
[1733217557064,0.92967407,95354.0,95353.0,0.001]
[1733217560674,0.87725407,95354.0,95353.0,0.053421]
[1733217561577,0.92967407,95354.0,95353.0,0.053421]
[1733217562270,0.92967407,95354.0,95353.0,0.001]
[1733217562866,0.91903007,95354.0,95353.0,0.001]
[1733217577071,0.82720735,95354.0,95353.0,0.001]
[1733217577276,0.91716446,95354.0,95353.0,0.001]
[1733217581982,0.9189068,95354.0,95353.0,0.001]
[1733217586487,0.91863717,95354.0,95353.0,0.001]
[1733217588888,1.05347717,95354.0,95353.0,0.001]
[1733217589390,0.91863717,95354.0,95353.0,0.001]
[1733217589596,0.88974832,95354.0,95353.0,0.053421]
[1733217589996,0.83732832,95354.0,95353.0,0.053421]
[1733217590992,0.51990265,95354.0,95353.0,0.053421]
[1733217591197,0.57232165,95354.0,95353.0,0.001]
[1733217593597,0.66378337,95354.0,95353.0,0.001]
[1733217593790,0.77111733,95354.0,95353.0,0.001]
[1733217594199,0.89806007,95354.0,95353.0,0.001]
[1733217599101,0.84564107,95354.0,95353.0,0.001]
[1733217599295,0.84564107,95354.0,95353.0,0.05342]
[1733217599697,0.48484107,95354.0,95353.0,0.05342]
[1733217600599,0.35789833,95354.0,95353.0,0.05342]
[1733217600808,0.31307281,95355.0,95353.0,0.001]
[1733217600991,0.0026,95365.0,95353.0,0.001]
[1733217600992,0.25045937,95360.0,95359.0,0.052417]
[1733217601308,0.15682415,95364.0,95361.0,0.052415]
[1733217601608,0.25033822,95362.0,95361.0,0.052415]
[1733217601801,0.052414,95364.0,95361.0,0.185775]
[1733217602102,0.15634082,95362.0,95361.0,0.052415]
[1733217602309,0.15634082,95363.0,95361.0,0.185775]
[1733217602605,0.15634082,95362.0,95361.0,0.185775]
[1733217602906,0.001,95362.0,95361.0,0.185775]
[1733217603107,0.15757178,95362.0,95361.0,0.185775]
[1733217603697,0.15757178,95362.0,95361.0,0.187775]
[1733217604997,0.26088618,95362.0,95361.0,0.187775]
[1733217605303,0.15757178,95362.0,95361.0,0.21705014]
[1733217607503,0.40785248,95362.0,95361.0,0.21705014]
[1733217607909,0.15757178,95362.0,95361.0,0.08369014]
[1733217608101,0.51837178,95362.0,95361.0,0.21705014]
[1733217608509,0.57078678,95362.0,95361.0,0.002]
[1733217608812,0.57078678,95362.0,95361.0,0.13536]
[1733217608813,0.76636351,95362.0,95361.0,0.13536]
[1733217609406,0.76636351,95362.0,95361.0,0.002]
[1733217609603,0.76636351,95362.0,95361.0,0.13536]
[1733217609999,1.07923841,95362.0,95361.0,0.13536]
[1733217610206,0.76636351,95362.0,95361.0,0.13536]
[1733217611006,1.04795637,95362.0,95361.0,0.13536]
[1733217611206,0.76636351,95362.0,95361.0,0.002]
[1733217611407,0.76636351,95362.0,95361.0,0.13536]
[1733217611607,0.6615602,95362.0,95361.0,0.13536]
[1733217613314,0.91188119,95362.0,95361.0,0.13536]
[1733217613504,0.76519,95362.0,95361.0,0.13536]
[1733217614410,0.712775,95362.0,95361.0,0.187776]
[1733217616007,0.83574809,95362.0,95361.0,0.187776]
[1733217616811,0.47494809,95362.0,95361.0,0.187776]
[1733217617115,0.351975,95362.0,95361.0,0.187776]
[1733217617316,0.47079155,95362.0,95361.0,0.187776]
[1733217617614,0.31894385,95362.0,95361.0,0.848576]
[1733217617828,0.19540322,95362.0,95361.0,0.848576]
[1733217618012,0.22192393,95362.0,95361.0,0.848576]
[1733217618320,0.0026,95371.0,95361.0,0.848576]
[1733217618321,0.34459091,95372.0,95371.0,0.052411]
[1733217618618,0.0327,95399.0,95377.0,0.052407]
[1733217618619,0.34459091,95378.0,95377.0,0.052407]
[1733217619025,0.34459091,95383.0,95377.0,0.052407]
[1733217619209,0.34459091,95383.0,95382.0,0.413205]
[1733217619519,7.956e-05,95383.0,95382.0,0.546525]
[1733217619915,7.956e-05,95383.0,95382.0,0.57655827]
[1733217620817,0.00107956,95383.0,95382.0,0.58055827]
[1733217621320,0.00107956,95383.0,95382.0,0.21975827]
[1733217621617,0.00107956,95383.0,95382.0,0.08643827]
[1733217621822,0.1591382,95383.0,95382.0,0.21975827]
[1733217622014,0.1591382,95383.0,95382.0,0.189725]
[1733217622217,0.00207956,95383.0,95382.0,0.198725]
[1733217622520,0.34667047,95383.0,95382.0,0.198725]
[1733217622836,0.00207956,95383.0,95382.0,0.198725]
[1733217623008,0.09860149,95383.0,95382.0,0.198725]
[1733217623210,0.25493611,95383.0,95382.0,0.198725]
[1733217623818,0.15841418,95383.0,95382.0,0.198725]
[1733217624714,0.00207956,95383.0,95382.0,0.198725]
[1733217625623,0.15904531,95383.0,95382.0,0.198725]
[1733217626321,0.15904531,95383.0,95382.0,0.559525]
[1733217627020,0.00207956,95383.0,95382.0,0.559525]
[1733217628717,0.15970075,95383.0,95382.0,0.559525]
[1733217629426,0.00207956,95383.0,95382.0,0.559525]
[1733217630117,0.00207956,95383.0,95382.0,0.5805041]
[1733217630314,0.00207956,95383.0,95382.0,0.8805041]
[1733217630926,0.00207956,95383.0,95382.0,0.88062573]
[1733217632724,0.00207956,95383.0,95382.0,0.58062573]
[1733217632917,0.00207956,95383.0,95382.0,0.88062573]
[1733217633622,5.6e-07,95383.0,95382.0,0.88062573]
[1733217635013,0.00011068,95391.0,95382.0,0.88062573]
[1733217635223,0.3451009,95399.0,95398.0,0.052396]
[1733217635428,0.12912717,95399.0,95398.0,0.548756]
[1733217635624,0.0324,95405.0,95398.0,0.548756]
[1733217635625,0.31247146,95403.0,95398.0,0.548756]
[1733217635825,0.34487146,95405.0,95404.0,0.052393]
[1733217636131,0.0324,95405.0,95404.0,0.052393]
[1733217636319,0.03250451,95405.0,95404.0,0.052393]
[1733217638325,0.03250451,95405.0,95404.0,0.187953]
[1733217638521,0.03450451,95405.0,95404.0,0.187953]
[1733217638824,0.03450451,95405.0,95404.0,0.191953]
[1733217639329,0.03250451,95405.0,95404.0,0.192953]
[1733217642027,0.03250451,95405.0,95404.0,0.057393]
[1733217642229,0.03250451,95405.0,95404.0,0.14056]
[1733217643528,0.03250451,95405.0,95404.0,0.192953]
[1733217645732,0.03250451,95405.0,95404.0,0.21392718]
[1733217645938,0.03250451,95405.0,95404.0,0.16153418]
[1733217646433,0.12899897,95405.0,95404.0,0.16153418]
[1733217646630,0.24175112,95405.0,95404.0,0.16153418]
[1733217646834,0.24175112,95405.0,95404.0,0.21392718]
[1733217647226,0.1289981,95405.0,95404.0,0.21392718]
[1733217650238,0.1813901,95405.0,95404.0,0.005]
[1733217650429,0.052395,95401.0,95400.0,0.0026]
[1733217650732,0.052395,95401.0,95379.0,0.44112]
[1733217650733,0.052395,95400.0,95379.0,0.44112]
[1733217650936,0.3608,95385.0,95380.0,0.21873109]
[1733217651141,0.052404,95383.0,95380.0,0.08321109]
[1733217651322,0.14889759,95383.0,95381.0,0.0209746]
[1733217651527,0.052406,95380.0,95379.0,0.13552]
[1733217651728,0.14889959,95380.0,95379.0,0.13552]
[1733217651925,0.26166466,95380.0,95379.0,0.13552]
[1733217652134,0.14889959,95380.0,95379.0,0.13552]
[1733217652324,0.26166466,95380.0,95379.0,0.13552]
[1733217653135,0.054406,95380.0,95379.0,0.14252]
[1733217653336,0.21163553,95380.0,95379.0,0.09262]
[1733217655932,0.21163553,95380.0,95379.0,0.145027]
[1733217656138,0.21163553,95380.0,95379.0,0.059407]
[1733217656439,0.21163553,95380.0,95379.0,0.007]
[1733217656628,0.57243553,95380.0,95379.0,0.007]
[1733217657325,0.66897531,95380.0,95379.0,0.007]
[1733217658036,0.66897531,95380.0,95367.0,0.13544]
[1733217658037,0.052413,95368.0,95367.0,0.13544]
[1733217658232,0.3608,95368.0,95362.0,0.0006]
[1733217658435,0.052415,95365.0,95361.0,0.13552045]
[1733217658734,0.15817491,95364.0,95361.0,0.13552045]
[1733217658929,0.19097491,95364.0,95361.0,0.13552045]
[1733217659135,0.052416,95362.0,95361.0,0.13552045]
[1733217659745,0.052416,95362.0,95361.0,0.13852045]
[1733217659929,0.0328,95364.0,95361.0,0.13852045]
[1733217660133,0.085215,95364.0,95361.0,0.13852045]
[1733217660334,0.001,95362.0,95361.0,0.13852045]
[1733217660748,0.053416,95362.0,95361.0,0.13852045]
[1733217660943,0.14995824,95362.0,95361.0,0.13852045]
[1733217661242,0.09754224,95362.0,95361.0,0.13852045]
[1733217661441,0.09754224,95362.0,95361.0,0.19093645]
[1733217661830,0.09754224,95362.0,95361.0,0.13852045]
[1733217662238,0.09854224,95362.0,95361.0,0.13852045]
[1733217662540,0.001,95362.0,95361.0,0.13552045]
[1733217663141,0.002,95362.0,95361.0,0.13552045]
[1733217664344,0.054416,95362.0,95361.0,0.13552045]
[1733217664837,0.054416,95362.0,95361.0,8.045e-05]
[1733217664838,0.57273429,95362.0,95361.0,8.045e-05]
[1733217666745,0.60213144,95362.0,95361.0,8.045e-05]
[1733217667352,0.60113144,95362.0,95361.0,8.045e-05]
[1733217667646,0.60213144,95362.0,95361.0,0.00108045]
[1733217670638,0.57284885,95362.0,95361.0,0.00108045]
[1733217679163,0.66940433,95362.0,95361.0,0.00108045]
[1733217679453,0.57284885,95362.0,95361.0,0.00108045]
[1733217680045,0.66940433,95362.0,95361.0,0.00108045]
[1733217680554,0.66940433,95362.0,95361.0,1e-08]
[1733217682745,0.21204885,95362.0,95361.0,0.05241601]
[1733217682945,0.15963285,95362.0,95361.0,0.05241601]
[1733217683144,0.50392971,95362.0,95361.0,0.05241601]
[1733217683349,0.25618093,95362.0,95361.0,0.05241601]
[1733217683851,0.25618093,95362.0,95361.0,0.0818792]
[1733217686557,0.25618093,95362.0,95361.0,0.2159992]
[1733217691059,0.15963285,95362.0,95361.0,0.2159992]
[1733217691364,0.21204885,95362.0,95361.0,0.1635832]
[1733217691863,0.15963285,95362.0,95361.0,0.1635832]
[1733217692960,0.15963285,95362.0,95361.0,0.18456537]
[1733217693157,0.15963285,95362.0,95361.0,0.21466537]
[1733217693956,0.21204885,95362.0,95361.0,0.21466537]
[1733217694354,0.21204885,95362.0,95361.0,0.18456537]
[1733217695366,0.21204885,95362.0,95361.0,0.05044537]
[1733217695552,0.21204885,95362.0,95361.0,0.18456537]
[1733217696064,0.57284885,95362.0,95361.0,0.18456537]
[1733217696560,0.21204885,95362.0,95361.0,0.18456537]
[1733217699465,0.21204885,95362.0,95361.0,0.15510218]
[1733217699466,0.30859171,95362.0,95361.0,0.15510218]
[1733217699654,0.30859329,95362.0,95361.0,0.15510218]
[1733217700263,0.30859329,95362.0,95361.0,0.16385592]
[1733217702165,0.21204885,95362.0,95361.0,0.16385592]
[1733217703955,0.21204885,95362.0,95361.0,0.13412001]
[1733217704554,0.21204885,95362.0,95361.0,1e-08]
[1733217704756,0.21204885,95362.0,95361.0,0.13412001]
[1733217704955,0.21204885,95362.0,95361.0,1e-08]
[1733217705362,0.30859667,95362.0,95361.0,1e-08]
[1733217706169,0.42140981,95362.0,95361.0,1e-08]
[1733217708471,0.30859667,95362.0,95361.0,1e-08]
[1733217711360,0.4214177,95362.0,95361.0,1e-08]
[1733217711565,0.30859667,95362.0,95361.0,1e-08]
[1733217711763,0.42141547,95362.0,95361.0,1e-08]
[1733217713267,0.55553547,95362.0,95361.0,1e-08]
[1733217714272,0.64069529,95362.0,95361.0,1e-08]
[1733217714566,0.69073264,95362.0,95361.0,1e-08]
[1733217714768,0.87244028,95362.0,95361.0,1e-08]
[1733217715072,0.87244028,95362.0,95348.0,0.0026]
[1733217715073,0.052422,95349.0,95348.0,0.0026]
[1733217715374,0.052422,95349.0,95337.0,0.0026]
[1733217715375,0.052428,95338.0,95337.0,0.0026]
[1733217715567,0.05243,95334.0,95333.0,0.186551]
[1733217715771,0.14897782,95334.0,95333.0,0.186551]
[1733217715968,0.30725703,95334.0,95333.0,0.186551]
[1733217716164,0.30725703,95334.0,95333.0,0.052431]
[1733217716368,0.30725703,95334.0,95333.0,0.07341618]
[1733217717067,0.30825703,95334.0,95333.0,0.07341618]
[1733217717963,0.30825703,95334.0,95333.0,0.20785618]
[1733217718169,0.30825703,95334.0,95333.0,0.02098518]
[1733217718378,0.30925703,95334.0,95333.0,0.02098518]
[1733217718874,0.30925703,95334.0,95332.0,0.00157305]
[1733217718875,0.30928151,95334.0,95332.0,0.00157305]
[1733217719181,0.0965723,95333.0,95332.0,0.00157305]
[1733217719469,0.25436021,95333.0,95332.0,0.00157305]
[1733217720271,0.50222951,95333.0,95332.0,0.00157305]
[1733217720461,0.71166184,95333.0,95332.0,0.00157305]
[1733217720867,0.71266184,95333.0,95332.0,0.00157305]
[1733217721265,0.36821973,95333.0,95332.0,0.00157305]
[1733217721465,0.36821973,95333.0,95330.0,1.0006]
[1733217721466,0.052431,95332.0,95330.0,1.0006]
[1733217721765,0.15732797,95331.0,95330.0,1.0]
[1733217721965,0.25390078,95331.0,95330.0,1.0]
[1733217722268,0.15732797,95331.0,95330.0,1.0]
[1733217722871,0.15832797,95331.0,95330.0,1.0]
[1733217723369,0.39936224,95331.0,95330.0,1.0]
[1733217724376,0.43106224,95331.0,95330.0,1.0]
[1733217726576,0.43106446,95331.0,95330.0,1.0]
[1733217728278,0.31820519,95331.0,95330.0,1.0]
[1733217729465,0.22162797,95331.0,95330.0,1.0]
[1733217731472,0.31821702,95331.0,95330.0,1.0]
[1733217731878,0.3182167,95331.0,95330.0,1.0]
[1733217732472,0.63056572,95331.0,95330.0,1.0]
[1733217732771,0.3182167,95331.0,95330.0,1.0]
[1733217732972,0.63056572,95331.0,95330.0,1.0]
[1733217734485,0.2875167,95331.0,95330.0,1.0]
[1733217736279,0.2875167,95331.0,95319.0,0.0026]
[1733217736280,0.052433,95329.0,95319.0,0.0026]
[1733217736478,0.052442,95314.0,95313.0,0.0026]
[1733217736781,0.052442,95314.0,95303.0,0.02098216]
[1733217736782,0.052447,95304.0,95303.0,0.02098216]
[1733217736986,0.14903471,95304.0,95303.0,0.02098216]
[1733217737281,0.14903471,95304.0,95302.0,0.13448]
[1733217737282,0.052448,95303.0,95302.0,0.13448]
[1733217737475,0.20946596,95303.0,95302.0,0.13448]
[1733217737680,0.50216364,95303.0,95302.0,0.13448]
[1733217737886,0.25485352,95303.0,95302.0,0.13448]
[1733217738387,0.25585352,95303.0,95302.0,0.0308]
[1733217738684,0.25585352,95303.0,95302.0,0.16528]
[1733217739281,0.20595352,95303.0,95302.0,0.16528]
[1733217739483,0.20595938,95303.0,95302.0,0.16528]
[1733217739979,0.20695938,95303.0,95302.0,0.16528]
[1733217741991,0.11036581,95303.0,95302.0,0.16528]
[1733217743189,0.06036581,95303.0,95302.0,0.16528]
[1733217743589,1e-08,95309.0,95302.0,0.52608]
[1733217743793,1e-08,95309.0,95308.0,0.052445]
[1733217744090,1e-08,95309.0,95308.0,0.847765]
[1733217744288,0.105832,95332.0,95308.0,0.847765]
[1733217744491,0.0324,95332.0,95324.0,0.052436]
[1733217744680,0.084832,95332.0,95329.0,0.3608]
[1733217744881,0.1569157,95330.0,95329.0,0.3608]
[1733217745289,0.1569157,95330.0,95329.0,0.49528]
[1733217745795,0.1569157,95330.0,95329.0,0.52458117]
[1733217746193,0.1569157,95330.0,95329.0,0.39010117]
[1733217746496,0.1569157,95330.0,95329.0,0.52322117]
[1733217747289,0.1569157,95330.0,95329.0,0.52522117]
[1733217747688,0.1579157,95330.0,95329.0,0.52722117]
[1733217747885,0.2103487,95330.0,95329.0,0.13712]
[1733217749195,0.2103487,95330.0,95329.0,0.004]
[1733217749196,0.2417487,95330.0,95329.0,0.004]
[1733217749392,0.2417487,95330.0,95329.0,0.003]
[1733217749588,0.2427487,95330.0,95329.0,0.003]
[1733217749789,0.2427487,95330.0,95310.0,0.00064]
[1733217749998,0.052441,95316.0,95311.0,0.13312]
[1733217750200,0.052441,95315.0,95311.0,0.13312]
[1733217750398,0.052441,95315.0,95308.0,0.052445]
[1733217750399,0.20885089,95315.0,95312.0,0.13312]
[1733217750694,0.052441,95315.0,95312.0,0.13312]
[1733217750896,0.15640989,95314.0,95312.0,0.13312]
[1733217751596,0.15640989,95314.0,95313.0,0.13312]
[1733217751903,0.15640989,95314.0,95311.0,0.002]
[1733217751904,0.052442,95313.0,95312.0,0.001]
[1733217752088,0.052442,95313.0,95312.0,0.13412]
[1733217752294,0.21071804,95313.0,95312.0,0.13312]
[1733217752600,0.21071804,95313.0,95312.0,0.13412]
[1733217753802,0.21071804,95313.0,95312.0,0.13312]
[1733217754096,0.052443,95311.0,95310.0,0.02098883]
[1733217754295,0.052443,95311.0,95310.0,0.15410883]
[1733217754500,0.052443,95311.0,95300.0,1.33855701]
[1733217754501,0.15728141,95311.0,95300.0,0.80071999]
[1733217754696,0.15728141,95311.0,95304.0,0.052447]
[1733217754697,0.052447,95305.0,95304.0,0.052447]
[1733217755098,0.20972841,95305.0,95304.0,0.052447]
[1733217755289,0.052449,95301.0,95300.0,0.823809]
[1733217755495,0.052449,95301.0,95300.0,0.823249]
[1733217755695,0.052446,95306.0,95303.0,0.052448]
[1733217756005,0.15725292,95304.0,95303.0,0.052448]
[1733217756501,0.052447,95305.0,95303.0,0.052448]
[1733217756706,0.15665409,95304.0,95303.0,0.052448]
[1733217756900,0.15665409,95304.0,95303.0,0.185568]
[1733217757704,0.15765409,95304.0,95303.0,0.185568]
[1733217757913,0.15865409,95304.0,95303.0,0.185568]
[1733217758305,0.25525136,95304.0,95303.0,0.185568]
[1733217758799,0.30769836,95304.0,95303.0,0.185568]
[1733217759001,0.30769836,95304.0,95303.0,0.13312]
[1733217759590,0.21110109,95304.0,95303.0,0.13312]
[1733217759799,0.30769839,95304.0,95303.0,0.13312]
[1733217760106,0.30769902,95304.0,95303.0,0.13312]
[1733217760302,0.30769902,95304.0,95300.0,0.7708]
[1733217760303,0.052449,95301.0,95300.0,0.77136]
[1733217760603,0.30539889,95301.0,95300.0,0.90392]
[1733217761511,0.30639889,95301.0,95300.0,0.90392]
[1733217761901,0.30639889,95301.0,95300.0,0.41]
[1733217762205,0.30739889,95301.0,95300.0,0.41]
[1733217763304,0.33638763,95301.0,95293.0,0.002]
[1733217763604,0.413253,95294.0,95293.0,0.002]
[1733217763913,0.66632332,95294.0,95293.0,0.002]
[1733217764608,0.66632332,95294.0,95293.0,0.054453]
[1733217764998,0.66632332,95294.0,95293.0,0.002]
[1733217765422,0.66732332,95294.0,95293.0,0.002]
[1733217766205,0.57072539,95294.0,95293.0,0.002]
[1733217767203,0.57172539,95294.0,95293.0,0.002]
[1733217768606,0.21092539,95294.0,95293.0,0.002]
[1733217768797,0.24079954,95294.0,95293.0,0.002]
[1733217769308,0.21092539,95294.0,95293.0,0.002]
[1733217769708,0.24010816,95294.0,95293.0,0.002]
[1733217769907,0.21092539,95294.0,95293.0,0.002]
[1733217770102,0.15847239,95294.0,95293.0,0.415253]
[1733217770309,0.15847239,95294.0,95293.0,0.548413]
[1733217770915,0.15847239,95294.0,95293.0,0.415253]
[1733217771116,0.15847239,95294.0,95293.0,0.548413]
[1733217771308,0.15847239,95294.0,95293.0,0.187613]
[1733217771507,0.15847239,95294.0,95293.0,0.054453]
[1733217771699,0.15847239,95294.0,95293.0,0.187613]
[1733217775316,0.15847239,95294.0,95293.0,0.218313]
[1733217779206,0.15847239,95294.0,95293.0,0.085153]
[1733217779406,0.15847239,95294.0,95293.0,0.218393]
[1733217781011,0.15847239,95294.0,95293.0,0.085153]
[1733217781217,0.25507494,95294.0,95293.0,0.218393]
[1733217781620,0.15847239,95294.0,95293.0,0.218393]
[1733217781815,0.15847239,95294.0,95293.0,0.579193]
[1733217782217,0.15847239,95294.0,95293.0,0.218393]
[1733217785426,0.15847239,95294.0,95293.0,0.054453]
[1733217785628,0.15847239,95294.0,95293.0,0.187693]
[1733217786021,0.15847239,95294.0,95293.0,0.054453]
[1733217786431,0.15847239,95294.0,95293.0,0.187693]
[1733217786625,0.15847239,95294.0,95293.0,0.054453]
[1733217786927,0.15847239,95294.0,95293.0,0.187693]
[1733217788342,0.15847239,95294.0,95293.0,0.054453]
[1733217788642,0.15847239,95294.0,95293.0,0.187693]
[1733217788643,0.22407239,95294.0,95293.0,0.187693]
[1733217788833,0.22407239,95294.0,95293.0,0.054453]
[1733217789037,0.27652539,95294.0,95293.0,0.13524]
[1733217790945,0.27652539,95294.0,95293.0,0.002]
[1733217791137,0.27652539,95294.0,95293.0,0.13524]
[1733217791336,0.37313359,95294.0,95293.0,0.13524]
[1733217791939,0.37313359,95294.0,95293.0,0.002]
[1733217792139,0.37313359,95294.0,95293.0,0.13524]
[1733217792544,0.27652539,95294.0,95293.0,0.002]
[1733217792845,0.27652539,95294.0,95293.0,0.13524]
[1733217793040,0.37313379,95294.0,95293.0,0.13524]
[1733217793244,0.37313379,95294.0,95293.0,0.187693]
[1733217793543,0.37313379,95294.0,95293.0,0.054453]
[1733217793743,0.37313379,95294.0,95293.0,0.187693]
[1733217794136,0.32068079,95294.0,95293.0,0.187693]
[1733217795840,0.37313379,95294.0,95293.0,0.13524]
[1733217796449,0.27652539,95294.0,95293.0,0.13524]
[1733217796649,0.37313456,95294.0,95293.0,0.13524]
[1733217799853,0.37313456,95294.0,95293.0,0.187693]
[1733217801551,0.37313456,95294.0,95293.0,0.13524]
[1733217801744,0.48602159,95294.0,95293.0,0.13524]
[1733217802651,0.48602159,95294.0,95293.0,0.002]
[1733217802846,0.37313456,95294.0,95293.0,0.002]
[1733217803354,0.48602494,95294.0,95293.0,0.002]
[1733217803548,0.37313456,95294.0,95293.0,0.002]
[1733217806452,0.37313844,95294.0,95293.0,0.002]
[1733217811560,0.48603389,95294.0,95293.0,0.002]
[1733217812243,0.40058089,95294.0,95293.0,0.002]
[1733217812453,0.40058089,95294.0,95293.0,0.054453]
[1733217812755,0.36798089,95294.0,95293.0,0.054453]
[1733217813756,0.36798089,95294.0,95293.0,0.0835533]
[1733217814249,0.59978415,95294.0,95293.0,0.0835533]
[1733217814763,0.65223815,95294.0,95293.0,0.1690603]
[1733217815061,0.42042119,95294.0,95293.0,0.1690603]
[1733217817052,0.36796719,95294.0,95293.0,0.0835533]
[1733217817250,0.42042019,95294.0,95293.0,0.0311003]
[1733217817663,0.42042019,95294.0,95293.0,0.1690603]
[1733217818559,0.30753844,95294.0,95293.0,0.2215133]